[Event "January 9 Early 2024"]
[Site "https://www.chess.com"]
[Date "2024.01.11"]
[Round "11"]
[White "Vela Frago, Alberto"]
[Black "Srihari L R"]
[Result "0-1"]
[Board "128"]
[TimeControl "180+1"]
[WhiteFideId "24531685"]
[BlackFideId "46617116"]
[WhiteElo "2399"]
[BlackElo "2676"]
[WhiteTeam "ESP"]
[BlackTeam "IND"]
[WhiteClock "0:00:03"]
[BlackClock "0:00:24"]

1. e4 {[%clk 0:03:00]}  d6 {[%clk 0:02:56]} 2. d4 {[%clk 0:02:59]}  Nf6 {[%clk 0:02:56]} 3. Nc3 {[%clk 0:02:51]}  e5 {[%clk 0:02:56]} 4. d5 {[%clk 0:02:50]}  g6 {[%clk 0:02:54]} 5. Be3 {[%clk 0:02:49]}  Bg7 {[%clk 0:02:49]} 6. Qd2 {[%clk 0:02:48]}  Ng4 {[%clk 0:02:46]} 7. Bg5 {[%clk 0:02:47]}  f6 {[%clk 0:02:46]} 8. Bh4 {[%clk 0:02:47]}  h5 {[%clk 0:02:46]} 9. f3 {[%clk 0:02:45]}  Nh6 {[%clk 0:02:45]} 10. Bb5+ {[%clk 0:02:44]}  Bd7 {[%clk 0:02:44]} 11. Bxd7+ {[%clk 0:02:40]}  Nxd7 {[%clk 0:02:44]} 12. Nge2 {[%clk 0:02:39]}  g5 {[%clk 0:02:40]} 13. Bf2 {[%clk 0:02:38]}  a6 {[%clk 0:02:29]} 14. O-O-O {[%clk 0:02:36]}  Qe7 {[%clk 0:02:29]} 15. h4 {[%clk 0:02:32]}  g4 {[%clk 0:02:22]} 16. Be3 {[%clk 0:02:27]}  O-O-O {[%clk 0:02:21]} 17. Na4 {[%clk 0:02:23]}  f5 {[%clk 0:02:16]} 18. Bg5 {[%clk 0:02:21]}  Nf6 {[%clk 0:02:16]} 19. Qc3 {[%clk 0:02:12]}  Kb8 {[%clk 0:02:16]} 20. Qb3 {[%clk 0:02:06]}  gxf3 {[%clk 0:02:04]} 21. gxf3 {[%clk 0:01:56]}  fxe4 {[%clk 0:02:04]} 22. fxe4 {[%clk 0:01:55]}  Nhg4 {[%clk 0:02:05]} 23. Rdf1 {[%clk 0:01:50]}  Bh6 {[%clk 0:02:04]} 24. Rf5 {[%clk 0:01:42]}  Nxe4 {[%clk 0:01:43]} 25. Bxh6 {[%clk 0:01:27]}  Nxh6 {[%clk 0:01:37]} 26. Rxh5 {[%clk 0:01:23]}  Qf7 {[%clk 0:01:30]} 27. Rg5 {[%clk 0:00:54]}  Nxg5 {[%clk 0:01:29]} 28. hxg5 {[%clk 0:00:55]}  Ng4 {[%clk 0:01:25]} 29. Rg1 {[%clk 0:00:46]}  Qf2 {[%clk 0:01:14]} 30. Qg3 {[%clk 0:00:40]}  Qxe2 {[%clk 0:01:04]} 31. Qxg4 {[%clk 0:00:34]}  Qf2 {[%clk 0:00:52]} 32. g6 {[%clk 0:00:33]}  Rh2 {[%clk 0:00:50]} 33. Qd1 {[%clk 0:00:12]}  Rg2 {[%clk 0:00:47]} 34. Rxg2 {[%clk 0:00:10]}  Qxg2 {[%clk 0:00:47]} 35. Qh5 {[%clk 0:00:07]}  Qg1+ {[%clk 0:00:42]} 36. Kd2 {[%clk 0:00:07]}  Qd4+ {[%clk 0:00:42]} 37. Kc1 {[%clk 0:00:07]}  Qxa4 {[%clk 0:00:42]} 38. g7 {[%clk 0:00:07]}  Qf4+ {[%clk 0:00:40]} 39. Kd1 {[%clk 0:00:07]}  Qf1+ {[%clk 0:00:39]} 40. Kd2 {[%clk 0:00:07]}  Qg2+ {[%clk 0:00:40]} 41. Kc3 {[%clk 0:00:07]}  Qxg7 {[%clk 0:00:40]} 42. Qf5 {[%clk 0:00:07]}  Rf8 {[%clk 0:00:39]} 43. Qe6 {[%clk 0:00:07]}  Rf3+ {[%clk 0:00:39]} 44. Kb4 {[%clk 0:00:07]}  Rf4+ {[%clk 0:00:36]} 45. c4 {[%clk 0:00:08]}  Qf7 {[%clk 0:00:33]} 46. Qh6 {[%clk 0:00:08]}  b6 {[%clk 0:00:32]} 47. a4 {[%clk 0:00:07]}  Qxd5 {[%clk 0:00:29]} 48. Qh8+ {[%clk 0:00:04]}  Kb7 {[%clk 0:00:29]} 49. a5 {[%clk 0:00:02]}  Qxc4+ {[%clk 0:00:24]} 50. Ka3 {[%clk 0:00:03]}  Qa4# {[%clk 0:00:24]} 0-1

[Event "January 9 Early 2024"]
[Site "https://www.chess.com"]
[Date "2024.01.11"]
[Round "11"]
[White "Batsiashvili, Nino"]
[Black "Prudnykova, Olga"]
[Result "1-0"]
[Board "129"]
[TimeControl "180+1"]
[WhiteFideId "13602993"]
[BlackFideId "14121093"]
[WhiteElo "2509"]
[BlackElo "2288"]
[WhiteTeam "GEO"]
[BlackTeam "ISL"]
[WhiteClock "0:00:13"]
[BlackClock "0:00:02"]

1. g3 {[%clk 0:02:53]}  Nf6 {[%clk 0:02:59]} 2. Bg2 {[%clk 0:02:53]}  g6 {[%clk 0:03:00]} 3. e4 {[%clk 0:02:53]}  d5 {[%clk 0:02:57]} 4. e5 {[%clk 0:02:53]}  Ng8 {[%clk 0:02:57]} 5. f4 {[%clk 0:02:51]}  e6 {[%clk 0:02:57]} 6. Nf3 {[%clk 0:02:51]}  Ne7 {[%clk 0:02:57]} 7. O-O {[%clk 0:02:52]}  c5 {[%clk 0:02:57]} 8. c3 {[%clk 0:02:51]}  Nbc6 {[%clk 0:02:56]} 9. d3 {[%clk 0:02:49]}  h5 {[%clk 0:02:54]} 10. Na3 {[%clk 0:02:39]}  Qb6 {[%clk 0:02:48]} 11. Nc2 {[%clk 0:02:31]}  Nf5 {[%clk 0:02:47]} 12. Qe1 {[%clk 0:02:13]}  Be7 {[%clk 0:02:45]} 13. Bd2 {[%clk 0:01:49]}  Qxb2 {[%clk 0:02:28]} 14. Ne3 {[%clk 0:01:49]}  Nxe3 {[%clk 0:02:28]} 15. Bxe3 {[%clk 0:01:49]}  Qa3 {[%clk 0:02:25]} 16. h4 {[%clk 0:01:37]}  b6 {[%clk 0:02:11]} 17. Ng5 {[%clk 0:01:36]}  Ba6 {[%clk 0:01:52]} 18. Qd2 {[%clk 0:01:36]}  c4 {[%clk 0:01:43]} 19. d4 {[%clk 0:01:33]}  Bxg5 {[%clk 0:01:41]} 20. fxg5 {[%clk 0:01:30]}  Ne7 {[%clk 0:01:40]} 21. Rf6 {[%clk 0:01:24]}  Nf5 {[%clk 0:01:38]} 22. Rf1 {[%clk 0:01:21]}  Qe7 {[%clk 0:01:34]} 23. R1xf5 {[%clk 0:01:11]}  gxf5 {[%clk 0:01:33]} 24. g6 {[%clk 0:01:11]}  fxg6 {[%clk 0:01:26]} 25. Bg5 {[%clk 0:01:11]}  O-O-O {[%clk 0:01:15]} 26. Rxg6 {[%clk 0:00:57]}  Qf7 {[%clk 0:01:15]} 27. Rf6 {[%clk 0:00:53]}  Qd7 {[%clk 0:00:59]} 28. Bf3 {[%clk 0:00:51]}  Rdg8 {[%clk 0:00:59]} 29. Kh2 {[%clk 0:00:49]}  Bb5 {[%clk 0:00:57]} 30. Qb2 {[%clk 0:00:44]}  Ba4 {[%clk 0:00:49]} 31. Bh6 {[%clk 0:00:30]}  Rh7 {[%clk 0:00:39]} 32. Bf4 {[%clk 0:00:18]}  Rhh8 {[%clk 0:00:37]} 33. Qe2 {[%clk 0:00:17]}  Qe7 {[%clk 0:00:30]} 34. Bxh5 {[%clk 0:00:16]}  Bc2 {[%clk 0:00:19]} 35. Bf7 {[%clk 0:00:16]}  Bd3 {[%clk 0:00:15]} 36. Qf2 {[%clk 0:00:14]}  Rf8 {[%clk 0:00:11]} 37. Bxe6+ {[%clk 0:00:14]}  Kb8 {[%clk 0:00:10]} 38. Rxf8+ {[%clk 0:00:14]}  Rxf8 {[%clk 0:00:09]} 39. Bxd5 {[%clk 0:00:15]}  Kc8 {[%clk 0:00:07]} 40. Bf3 {[%clk 0:00:15]}  Rg8 {[%clk 0:00:05]} 41. d5 {[%clk 0:00:15]}  Qh7 {[%clk 0:00:03]} 42. d6 {[%clk 0:00:14]}  Kd7 {[%clk 0:00:03]} 43. Bd5 {[%clk 0:00:14]}  Rg4 {[%clk 0:00:02]} 44. e6+ {[%clk 0:00:14]}  Ke8 {[%clk 0:00:02]} 45. Bc6+ {[%clk 0:00:13]}  Kf8 {[%clk 0:00:02]} 46. e7+ {[%clk 0:00:13]} 1-0

[Event "January 9 Early 2024"]
[Site "https://www.chess.com"]
[Date "2024.01.11"]
[Round "11"]
[White "Kruckenhauser, Arthur"]
[Black "Harriott, Tyrell"]
[Result "1-0"]
[Board "130"]
[TimeControl "180+1"]
[WhiteFideId "1642812"]
[BlackFideId "2086484"]
[WhiteElo "2532"]
[BlackElo "2353"]
[WhiteTeam "AUT"]
[BlackTeam "USA"]
[WhiteClock "0:00:11"]
[BlackClock "0:00:10"]

1. e4 {[%clk 0:03:00]}  d5 {[%clk 0:02:59]} 2. exd5 {[%clk 0:02:59]}  Nf6 {[%clk 0:02:57]} 3. Nc3 {[%clk 0:02:57]}  Nxd5 {[%clk 0:02:53]} 4. g3 {[%clk 0:02:57]}  g6 {[%clk 0:02:43]} 5. Bg2 {[%clk 0:02:57]}  c6 {[%clk 0:02:42]} 6. Nf3 {[%clk 0:02:55]}  Bg7 {[%clk 0:02:42]} 7. O-O {[%clk 0:02:55]}  O-O {[%clk 0:02:42]} 8. Re1 {[%clk 0:02:48]}  Na6 {[%clk 0:02:42]} 9. Nxd5 {[%clk 0:02:37]}  cxd5 {[%clk 0:02:37]} 10. d4 {[%clk 0:02:36]}  Nc7 {[%clk 0:02:35]} 11. Bg5 {[%clk 0:02:33]}  f6 {[%clk 0:02:32]} 12. Bd2 {[%clk 0:02:30]}  Be6 {[%clk 0:02:27]} 13. Qe2 {[%clk 0:02:27]}  Re8 {[%clk 0:02:25]} 14. Rad1 {[%clk 0:02:26]}  Bf7 {[%clk 0:02:24]} 15. c3 {[%clk 0:02:18]}  Qd7 {[%clk 0:02:23]} 16. Qd3 {[%clk 0:02:17]}  b5 {[%clk 0:02:18]} 17. Bf4 {[%clk 0:02:15]}  a6 {[%clk 0:02:17]} 18. Nd2 {[%clk 0:02:08]}  Rad8 {[%clk 0:02:12]} 19. Nb3 {[%clk 0:02:07]}  Qc8 {[%clk 0:02:09]} 20. Nc5 {[%clk 0:02:06]}  e5 {[%clk 0:02:00]} 21. dxe5 {[%clk 0:02:06]}  fxe5 {[%clk 0:01:59]} 22. Bg5 {[%clk 0:02:06]}  Rd6 {[%clk 0:01:57]} 23. b4 {[%clk 0:01:24]}  Qg4 {[%clk 0:01:46]} 24. h4 {[%clk 0:01:15]}  h6 {[%clk 0:01:33]} 25. Bc1 {[%clk 0:01:13]}  g5 {[%clk 0:01:29]} 26. Bf3 {[%clk 0:01:07]}  Qh3 {[%clk 0:01:26]} 27. Bg2 {[%clk 0:01:03]}  Qg4 {[%clk 0:01:26]} 28. hxg5 {[%clk 0:01:00]}  hxg5 {[%clk 0:01:26]} 29. Qf3 {[%clk 0:00:58]}  Qc8 {[%clk 0:01:19]} 30. Bxg5 {[%clk 0:00:55]}  e4 {[%clk 0:01:13]} 31. Qe3 {[%clk 0:00:51]}  Ne6 {[%clk 0:01:07]} 32. Nxe4 {[%clk 0:00:42]}  dxe4 {[%clk 0:00:49]} 33. Rxd6 {[%clk 0:00:41]}  Nxg5 {[%clk 0:00:46]} 34. Qxg5 {[%clk 0:00:40]}  Qxc3 {[%clk 0:00:44]} 35. Red1 {[%clk 0:00:32]}  Qxb4 {[%clk 0:00:38]} 36. Rd8 {[%clk 0:00:30]}  Qa4 {[%clk 0:00:26]} 37. Rxe8+ {[%clk 0:00:30]}  Bxe8 {[%clk 0:00:27]} 38. Rd8 {[%clk 0:00:25]}  Kf7 {[%clk 0:00:16]} 39. Qh5+ {[%clk 0:00:24]}  Kf6 {[%clk 0:00:15]} 40. Rxe8 {[%clk 0:00:21]}  Qd4 {[%clk 0:00:13]} 41. Qh4+ {[%clk 0:00:17]}  Kf7 {[%clk 0:00:13]} 42. Qxe4 {[%clk 0:00:17]}  Qd1+ {[%clk 0:00:11]} 43. Kh2 {[%clk 0:00:16]}  Qh5+ {[%clk 0:00:11]} 44. Kg1 {[%clk 0:00:16]}  Qd1+ {[%clk 0:00:11]} 45. Bf1 {[%clk 0:00:16]}  Bf8 {[%clk 0:00:10]} 46. Qe6+ {[%clk 0:00:17]}  Kg7 {[%clk 0:00:10]} 47. Qg4+ {[%clk 0:00:12]}  Kf7 {[%clk 0:00:10]} 48. Qxd1 {[%clk 0:00:11]} 1-0

[Event "January 9 Early 2024"]
[Site "https://www.chess.com"]
[Date "2024.01.11"]
[Round "11"]
[White "Murthy, Pappu"]
[Black "Thake, Conrad"]
[Result "1-0"]
[Board "136"]
[TimeControl "180+1"]
[WhiteFideId "2013401"]
[BlackFideId "5602947"]
[WhiteElo "1911"]
[BlackElo "1847"]
[WhiteTeam "USA"]
[BlackTeam "MLT"]
[WhiteClock "0:00:04"]
[BlackClock "0:00:02"]

1. e4 {[%clk 0:02:52]}  e6 {[%clk 0:02:59]} 2. d4 {[%clk 0:02:50]}  d5 {[%clk 0:02:59]} 3. Nc3 {[%clk 0:02:50]}  Bb4 {[%clk 0:02:57]} 4. e5 {[%clk 0:02:49]}  Qd7 {[%clk 0:02:53]} 5. a3 {[%clk 0:02:49]}  Bxc3+ {[%clk 0:02:50]} 6. bxc3 {[%clk 0:02:48]}  b6 {[%clk 0:02:50]} 7. Nf3 {[%clk 0:02:46]}  Ba6 {[%clk 0:02:50]} 8. Bxa6 {[%clk 0:02:45]}  Nxa6 {[%clk 0:02:50]} 9. Qe2 {[%clk 0:02:46]}  Nb8 {[%clk 0:02:48]} 10. O-O {[%clk 0:02:47]}  Ne7 {[%clk 0:02:43]} 11. a4 {[%clk 0:02:47]}  Nbc6 {[%clk 0:02:28]} 12. Ba3 {[%clk 0:02:46]}  Na5 {[%clk 0:02:27]} 13. Nd2 {[%clk 0:02:39]}  Ng6 {[%clk 0:02:05]} 14. f4 {[%clk 0:02:34]}  Qxa4 {[%clk 0:01:59]} 15. Rfc1 {[%clk 0:02:10]}  Qd7 {[%clk 0:01:53]} 16. g3 {[%clk 0:02:08]}  Nc6 {[%clk 0:01:36]} 17. Qb5 {[%clk 0:02:01]}  a6 {[%clk 0:01:34]} 18. Qd3 {[%clk 0:01:59]}  Nge7 {[%clk 0:01:20]} 19. Kh1 {[%clk 0:01:37]}  h5 {[%clk 0:00:56]} 20. h3 {[%clk 0:01:31]}  Nf5 {[%clk 0:00:54]} 21. Kh2 {[%clk 0:01:29]}  Nce7 {[%clk 0:00:47]} 22. Nf3 {[%clk 0:01:25]}  Qb5 {[%clk 0:00:36]} 23. Qd2 {[%clk 0:01:11]}  a5 {[%clk 0:00:33]} 24. Rcb1 {[%clk 0:01:07]}  Qd7 {[%clk 0:00:29]} 25. Qd3 {[%clk 0:01:03]}  Ng6 {[%clk 0:00:25]} 26. Rb3 {[%clk 0:00:38]}  h4 {[%clk 0:00:25]} 27. g4 {[%clk 0:00:35]}  Nxf4 {[%clk 0:00:25]} 28. Qd2 {[%clk 0:00:28]}  g5 {[%clk 0:00:17]} 29. gxf5 {[%clk 0:00:26]}  exf5 {[%clk 0:00:18]} 30. Nxg5 {[%clk 0:00:26]}  Ng6 {[%clk 0:00:14]} 31. Rbb1 {[%clk 0:00:22]}  f4 {[%clk 0:00:14]} 32. Rf1 {[%clk 0:00:22]}  Qf5 {[%clk 0:00:14]} 33. Nf3 {[%clk 0:00:20]}  Qe4 {[%clk 0:00:13]} 34. Rae1 {[%clk 0:00:19]}  Qf5 {[%clk 0:00:12]} 35. e6 {[%clk 0:00:17]}  fxe6 {[%clk 0:00:11]} 36. Rg1 {[%clk 0:00:16]}  O-O-O {[%clk 0:00:10]} 37. Rg5 {[%clk 0:00:16]}  Qf6 {[%clk 0:00:09]} 38. Reg1 {[%clk 0:00:14]}  Rdg8 {[%clk 0:00:09]} 39. Qg2 {[%clk 0:00:13]}  Rh6 {[%clk 0:00:08]} 40. Bc1 {[%clk 0:00:09]}  Qf7 {[%clk 0:00:07]} 41. Kh1 {[%clk 0:00:07]}  Rg7 {[%clk 0:00:06]} 42. Ne5 {[%clk 0:00:06]}  f3 {[%clk 0:00:03]} 43. Nxf7 {[%clk 0:00:04]}  fxg2+ {[%clk 0:00:03]} 44. R1xg2 {[%clk 0:00:05]}  Rxf7 {[%clk 0:00:03]} 45. Rxg6 {[%clk 0:00:05]}  Rf1+ {[%clk 0:00:02]} 46. Rg1 {[%clk 0:00:04]} 1-0

[Event "January 9 Early 2024"]
[Site "https://www.chess.com"]
[Date "2024.01.11"]
[Round "11"]
[White "Arabidze, Meri"]
[Black "Manukian, Artak"]
[Result "1-0"]
[Board "138"]
[TimeControl "180+1"]
[WhiteFideId "13604040"]
[BlackFideId "13301373"]
[WhiteElo "2717"]
[BlackElo "2516"]
[WhiteTeam "GEO"]
[BlackTeam "ARM"]
[WhiteClock "0:00:17"]
[BlackClock "0:00:04"]

1. Nf3 {[%clk 0:02:55]}  g6 {[%clk 0:02:55]} 2. g3 {[%clk 0:02:55]}  Bg7 {[%clk 0:02:55]} 3. Bg2 {[%clk 0:02:56]}  e5 {[%clk 0:02:56]} 4. d3 {[%clk 0:02:55]}  d5 {[%clk 0:02:56]} 5. O-O {[%clk 0:02:55]}  Nc6 {[%clk 0:02:56]} 6. Nbd2 {[%clk 0:02:55]}  Nf6 {[%clk 0:02:56]} 7. c4 {[%clk 0:02:55]}  O-O {[%clk 0:02:54]} 8. a3 {[%clk 0:02:51]}  a5 {[%clk 0:02:53]} 9. cxd5 {[%clk 0:02:46]}  Nxd5 {[%clk 0:02:53]} 10. Nc4 {[%clk 0:02:45]}  Re8 {[%clk 0:02:48]} 11. Bd2 {[%clk 0:02:45]}  a4 {[%clk 0:02:46]} 12. Rc1 {[%clk 0:02:42]}  h5 {[%clk 0:02:31]} 13. b4 {[%clk 0:02:27]}  axb3 {[%clk 0:02:27]} 14. Qxb3 {[%clk 0:02:27]}  Ra7 {[%clk 0:02:13]} 15. e3 {[%clk 0:02:14]}  Be6 {[%clk 0:02:05]} 16. Qb1 {[%clk 0:02:11]}  Qd7 {[%clk 0:01:53]} 17. Ng5 {[%clk 0:02:08]}  Bg4 {[%clk 0:01:38]} 18. h3 {[%clk 0:02:01]}  f6 {[%clk 0:01:21]} 19. hxg4 {[%clk 0:01:55]}  fxg5 {[%clk 0:01:21]} 20. gxh5 {[%clk 0:01:55]}  gxh5 {[%clk 0:01:21]} 21. Qb5 {[%clk 0:01:51]}  Nf6 {[%clk 0:01:15]} 22. Qc5 {[%clk 0:01:31]}  Qe7 {[%clk 0:01:01]} 23. Qxe7 {[%clk 0:01:28]}  Rxe7 {[%clk 0:01:01]} 24. Bxc6 {[%clk 0:01:23]}  bxc6 {[%clk 0:01:02]} 25. Bb4 {[%clk 0:01:20]}  Re6 {[%clk 0:00:59]} 26. e4 {[%clk 0:01:14]}  Nd7 {[%clk 0:00:44]} 27. Ne3 {[%clk 0:01:02]}  Bf8 {[%clk 0:00:36]} 28. Bxf8 {[%clk 0:01:00]}  Kxf8 {[%clk 0:00:37]} 29. Rc3 {[%clk 0:00:59]}  c5 {[%clk 0:00:29]} 30. Kg2 {[%clk 0:00:59]}  Rea6 {[%clk 0:00:27]} 31. Nc4 {[%clk 0:00:59]}  Kg7 {[%clk 0:00:25]} 32. Ra1 {[%clk 0:00:40]}  Kf6 {[%clk 0:00:23]} 33. Nb2 {[%clk 0:00:38]}  Rd6 {[%clk 0:00:15]} 34. a4 {[%clk 0:00:38]}  Rb6 {[%clk 0:00:11]} 35. Nc4 {[%clk 0:00:37]}  Rba6 {[%clk 0:00:12]} 36. a5 {[%clk 0:00:37]}  Nb8 {[%clk 0:00:12]} 37. Rh1 {[%clk 0:00:35]}  Kg6 {[%clk 0:00:12]} 38. Nxe5+ {[%clk 0:00:35]}  Kh6 {[%clk 0:00:13]} 39. Nc4 {[%clk 0:00:34]}  Nc6 {[%clk 0:00:12]} 40. f4 {[%clk 0:00:23]}  gxf4 {[%clk 0:00:11]} 41. gxf4 {[%clk 0:00:23]}  Nxa5 {[%clk 0:00:11]} 42. Ne5 {[%clk 0:00:23]}  Rb6 {[%clk 0:00:08]} 43. Rxc5 {[%clk 0:00:21]}  Nb3 {[%clk 0:00:07]} 44. Rd5 {[%clk 0:00:16]}  Rd6 {[%clk 0:00:07]} 45. Nf7+ {[%clk 0:00:15]}  Kg7 {[%clk 0:00:07]} 46. Nxd6 {[%clk 0:00:16]}  cxd6 {[%clk 0:00:07]} 47. Rhxh5 {[%clk 0:00:16]}  Nc5 {[%clk 0:00:06]} 48. Rdg5+ {[%clk 0:00:16]}  Kf8 {[%clk 0:00:05]} 49. Rh8+ {[%clk 0:00:16]}  Ke7 {[%clk 0:00:04]} 50. Rh7+ {[%clk 0:00:17]} 1-0

[Event "January 9 Early 2024"]
[Site "https://www.chess.com"]
[Date "2024.01.11"]
[Round "11"]
[White "Derjabin, Ilja"]
[Black "Cruz, William Ferreira Da"]
[Result "1-0"]
[Board "141"]
[TimeControl "180+1"]
[WhiteFideId "14104768"]
[BlackFideId "2118050"]
[WhiteElo "2527"]
[BlackElo "2348"]
[WhiteTeam "UKR"]
[BlackTeam "BRA"]
[WhiteClock "0:00:16"]
[BlackClock "0:00:13"]

1. d4 {[%clk 0:03:00]}  Nf6 {[%clk 0:02:59]} 2. c4 {[%clk 0:03:00]}  g6 {[%clk 0:02:59]} 3. Nc3 {[%clk 0:03:01]}  Bg7 {[%clk 0:02:59]} 4. e4 {[%clk 0:03:01]}  O-O {[%clk 0:02:59]} 5. Nge2 {[%clk 0:03:01]}  d6 {[%clk 0:02:59]} 6. Ng3 {[%clk 0:03:01]}  e5 {[%clk 0:02:57]} 7. d5 {[%clk 0:03:01]}  c6 {[%clk 0:02:53]} 8. Be2 {[%clk 0:03:01]}  a6 {[%clk 0:02:51]} 9. a4 {[%clk 0:03:00]}  a5 {[%clk 0:02:47]} 10. O-O {[%clk 0:02:59]}  Na6 {[%clk 0:02:47]} 11. Be3 {[%clk 0:02:56]}  Nb4 {[%clk 0:02:46]} 12. Rc1 {[%clk 0:02:51]}  Qe7 {[%clk 0:02:32]} 13. h3 {[%clk 0:02:50]}  Bd7 {[%clk 0:02:25]} 14. Qd2 {[%clk 0:02:48]}  h5 {[%clk 0:02:00]} 15. Bg5 {[%clk 0:02:47]}  c5 {[%clk 0:01:50]} 16. Bxh5 {[%clk 0:02:44]}  Qe8 {[%clk 0:01:49]} 17. Be2 {[%clk 0:02:40]}  Nh7 {[%clk 0:01:48]} 18. Bh6 {[%clk 0:02:29]}  f5 {[%clk 0:01:46]} 19. Bxg7 {[%clk 0:02:28]}  Kxg7 {[%clk 0:01:45]} 20. exf5 {[%clk 0:02:29]}  gxf5 {[%clk 0:01:44]} 21. f4 {[%clk 0:02:28]}  e4 {[%clk 0:01:42]} 22. Nb5 {[%clk 0:02:27]}  Bxb5 {[%clk 0:01:41]} 23. axb5 {[%clk 0:02:27]}  Nf6 {[%clk 0:01:32]} 24. Nxf5+ {[%clk 0:02:25]}  Kh8 {[%clk 0:01:31]} 25. g4 {[%clk 0:02:22]}  a4 {[%clk 0:01:22]} 26. Qe3 {[%clk 0:02:16]}  Qd7 {[%clk 0:01:13]} 27. Kh2 {[%clk 0:02:10]}  Rf7 {[%clk 0:01:10]} 28. Nh6 {[%clk 0:01:55]}  Rh7 {[%clk 0:01:07]} 29. g5 {[%clk 0:01:55]}  Nd3 {[%clk 0:01:02]} 30. Bxd3 {[%clk 0:01:54]}  exd3 {[%clk 0:00:54]} 31. Qxd3 {[%clk 0:01:49]}  Re8 {[%clk 0:00:53]} 32. Rce1 {[%clk 0:01:48]}  Rhe7 {[%clk 0:00:52]} 33. Rxe7 {[%clk 0:01:43]}  Qxe7 {[%clk 0:00:52]} 34. gxf6 {[%clk 0:01:43]}  Qxf6 {[%clk 0:00:53]} 35. Ng4 {[%clk 0:01:29]}  Qxb2+ {[%clk 0:00:50]} 36. Kg3 {[%clk 0:01:29]}  Re2 {[%clk 0:00:46]} 37. Qg6 {[%clk 0:01:21]}  a3 {[%clk 0:00:42]} 38. f5 {[%clk 0:00:57]}  Qc3+ {[%clk 0:00:22]} 39. Kh4 {[%clk 0:00:56]}  Re7 {[%clk 0:00:20]} 40. f6 {[%clk 0:00:35]}  Rh7+ {[%clk 0:00:19]} 41. Qxh7+ {[%clk 0:00:35]}  Kxh7 {[%clk 0:00:19]} 42. f7 {[%clk 0:00:36]}  a2 {[%clk 0:00:14]} 43. f8=Q {[%clk 0:00:35]}  a1=Q {[%clk 0:00:14]} 44. Rxa1 {[%clk 0:00:29]}  Qxa1 {[%clk 0:00:14]} 45. Qxd6 {[%clk 0:00:25]}  Qe1+ {[%clk 0:00:14]} 46. Kg5 {[%clk 0:00:22]}  Qc1+ {[%clk 0:00:14]} 47. Kf5 {[%clk 0:00:21]}  Qc2+ {[%clk 0:00:14]} 48. Ke6 {[%clk 0:00:20]}  Qxc4 {[%clk 0:00:14]} 49. Qe7+ {[%clk 0:00:19]}  Kg6 {[%clk 0:00:14]} 50. Ne5+ {[%clk 0:00:19]}  Kh5 {[%clk 0:00:14]} 51. Qh7+ {[%clk 0:00:18]}  Kg5 {[%clk 0:00:14]} 52. Qf5+ {[%clk 0:00:17]}  Kh4 {[%clk 0:00:14]} 53. Nxc4 {[%clk 0:00:16]}  b6 {[%clk 0:00:13]} 54. Qg4# {[%clk 0:00:16]} 1-0

[Event "January 9 Early 2024"]
[Site "https://www.chess.com"]
[Date "2024.01.11"]
[Round "11"]
[White "Rakhmatullaev, Almas"]
[Black "Isajevsky, Anton"]
[Result "1-0"]
[Board "142"]
[TimeControl "180+1"]
[WhiteFideId "14205793"]
[BlackFideId "4142500"]
[WhiteElo "2842"]
[BlackElo "2650"]
[WhiteTeam "UZB"]
[BlackTeam "RUS"]
[WhiteClock "0:00:03"]
[BlackClock "0:00:02"]

1. e4 {[%clk 0:02:55]}  c5 {[%clk 0:02:59]} 2. Nf3 {[%clk 0:02:50]}  d6 {[%clk 0:02:59]} 3. d4 {[%clk 0:02:49]}  cxd4 {[%clk 0:03:00]} 4. Qxd4 {[%clk 0:02:50]}  e5 {[%clk 0:02:58]} 5. Qe3 {[%clk 0:02:46]}  Nf6 {[%clk 0:02:57]} 6. c4 {[%clk 0:02:46]}  Be7 {[%clk 0:02:50]} 7. Be2 {[%clk 0:02:43]}  O-O {[%clk 0:02:49]} 8. O-O {[%clk 0:02:42]}  Nc6 {[%clk 0:02:48]} 9. h3 {[%clk 0:02:39]}  Be6 {[%clk 0:02:47]} 10. Nc3 {[%clk 0:02:37]}  Qb8 {[%clk 0:02:40]} 11. Rd1 {[%clk 0:02:32]}  Rc8 {[%clk 0:02:36]} 12. b3 {[%clk 0:02:29]}  Bd8 {[%clk 0:02:30]} 13. Ba3 {[%clk 0:02:23]}  Bb6 {[%clk 0:02:26]} 14. Qd3 {[%clk 0:02:01]}  Bc5 {[%clk 0:01:51]} 15. Bxc5 {[%clk 0:01:52]}  dxc5 {[%clk 0:01:51]} 16. Nd5 {[%clk 0:01:53]}  Bxd5 {[%clk 0:01:49]} 17. cxd5 {[%clk 0:01:48]}  Nd4 {[%clk 0:01:48]} 18. Rac1 {[%clk 0:01:39]}  Ne8 {[%clk 0:01:09]} 19. Nd2 {[%clk 0:01:23]}  Nd6 {[%clk 0:01:07]} 20. Bg4 {[%clk 0:01:23]}  Rc7 {[%clk 0:01:04]} 21. f4 {[%clk 0:01:14]}  f6 {[%clk 0:00:46]} 22. fxe5 {[%clk 0:01:12]}  fxe5 {[%clk 0:00:47]} 23. Rf1 {[%clk 0:01:10]}  Qe8 {[%clk 0:00:40]} 24. Nf3 {[%clk 0:01:01]}  Qe7 {[%clk 0:00:36]} 25. Nxd4 {[%clk 0:01:00]}  cxd4 {[%clk 0:00:36]} 26. Be6+ {[%clk 0:00:59]}  Kh8 {[%clk 0:00:36]} 27. Rxc7 {[%clk 0:00:52]}  Qxc7 {[%clk 0:00:37]} 28. Qf3 {[%clk 0:00:49]}  h6 {[%clk 0:00:34]} 29. Kh1 {[%clk 0:00:47]}  Qe7 {[%clk 0:00:27]} 30. Qg3 {[%clk 0:00:39]}  Qg5 {[%clk 0:00:24]} 31. Qe1 {[%clk 0:00:32]}  b6 {[%clk 0:00:19]} 32. Qb4 {[%clk 0:00:25]}  Rd8 {[%clk 0:00:15]} 33. Kh2 {[%clk 0:00:22]}  Qe3 {[%clk 0:00:13]} 34. Rf3 {[%clk 0:00:07]}  Qxe4 {[%clk 0:00:13]} 35. Qa4 {[%clk 0:00:07]}  Qg6 {[%clk 0:00:07]} 36. Qc6 {[%clk 0:00:07]}  e4 {[%clk 0:00:06]} 37. Rg3 {[%clk 0:00:07]}  Qf6 {[%clk 0:00:07]} 38. Qc7 {[%clk 0:00:04]}  d3 {[%clk 0:00:07]} 39. Rxg7 {[%clk 0:00:04]}  Qe5+ {[%clk 0:00:05]} 40. g3 {[%clk 0:00:04]}  d2 {[%clk 0:00:02]} 41. Rh7# {[%clk 0:00:03]} 1-0